[Event "48th Rilton Cup 2018"]
[Site "Stockholm"]
[Date "2018.12.29"]
[Round "3"]
[White "Sengupta, Deep"]
[Black "Vestby-Ellingsen, Mads"]
[Result "1/2-1/2"]
[ECO "B47"]
[WhiteElo "2565"]
[BlackElo "2358"]
[Annotator "ChessBase"]
[PlyCount "109"]
[EventDate "2018.12.27"]
[EventType "swiss"]
[EventCountry "SWE"]
[SourceTitle "playchess.com"]
[Source "ChessBase"]
[SourceQuality "1"]
[TimeControl "40/5400+30:1800+30"]

1. e4 {[%emt 0:00:00]} c5 {[%emt 0:00:00]} 2. Nf3 {[%emt 0:00:00]} e6 {[%emt 0:00:00]} 3. d4 {[%emt 0:00:00]} cxd4 {[%emt 0:00:00]} 4. Nxd4 {[%emt 0:00:00]} Nc6 {[%emt 0:00:07]} 5. Nc3 {[%emt 0:00:00]} Qc7 {[%emt 0:00:06]} 6. Be2 {[%emt 0:00:46]} Nf6 {[%emt 0:00:43]} 7. O-O {[%emt 0:00:13]} Be7 {[%emt 0:00:20]} 8. Be3 {[%emt 0:00:17]} d6 {[%emt 0:00:19]} 9. f4 {[%emt 0:00:26]} O-O {[%emt 0:00:35]} 10. Kh1 {[%emt 0:00:27]} Nxd4 {[%emt 0:00:44]} 11. Qxd4 {[%emt 0:00:05]} b6 {[%emt 0:00:31]} 12. Bf3 {[%emt 0:08:54]} Bb7 {[%emt 0:00:23]} 13. Nb5 {[%emt 0:05:35]} Qb8 {[%emt 0:03:11]} 14. c4 {[%emt 0:01:20]} a6 {[%emt 0:18:27]} 15. Nc3 {[%emt 0:00:53]} b5 {[%emt 0:00:25]} 16. cxb5 {[%emt 0:03:43]} axb5 {[%emt 0:01:09]} 17. a3 {[%emt 0:00:35]} Rd8 {[%emt 0:06:31]} 18. Rfd1 {[%emt 0:19:56]} d5 {[%emt 0:22:19]} 19. e5 {[%emt 0:00:40]} Ne4 {[%emt 0:00:26]} 20. Bxe4 {[%emt 0:00:27]} dxe4 {[%emt 0:00:11]} 21. Qb6 {[%emt 0:00:04]} Bd5 {[%emt 0:01:15]} 22. Qxb5 {[%emt 0:13:59]} Qxb5 {[%emt 0:00:36]} 23. Nxb5 {[%emt 0:00:01]} Rab8 {[%emt 0:00:54]} 24. a4 {[%emt 0:00:47]} h6 {[%emt 0:03:52]} 25. Kg1 {[%emt 0:02:57]} Kh7 {[%emt 0:09:17]} 26. Rac1 {[%emt 0:11:10]} Bb3 {[%emt 0:09:13]} 27. Rxd8 {[%emt 0:01:27]} Bxd8 {[%emt 0:00:13]} 28. Nd6 {[%emt 0:09:59]} f5 {[%emt 0:08:51]} 29. Rc8 {[%emt 0:06:50]} Rxc8 {[%emt 0:00:12]} 30. Nxc8 {[%emt 0:00:01]} Bxa4 {[%emt 0:00:15]} 31. b4 {[%emt 0:00:04]} Kg8 {[%emt 0:03:15]} 32. Bc5 {[%emt 0:05:59]} Bc7 {[%emt 0:01:36]} 33. Kf2 {[%emt 0:02:13]} Kf7 {[%emt 0:04:00]} 34. Ke3 {[%emt 0:00:05]} Bd7 {[%emt 0:03:19]} 35. Na7 {[%emt 0:01:51]} Bb8 {[%emt 0:01:05]} 36. Kd4 {[%emt 0:00:02]} Bxa7 {[%emt 0:00:42]} 37. Bxa7 {[%emt 0:00:01]} Ba4 {[%emt 0:01:48]} 38. Kc4 {[%emt 0:02:55]} Ke8 {[%emt 0:00:55]} 39. b5 {[%emt 0:03:17]} Kd7 {[%emt 0:00:36]} 40. Be3 {[%emt 0:00:27]} Bd1 {[%emt 0:01:02]} 41. Kc5 {[%emt 0:31:07]} Bb3 {[%emt 0:01:24]} 42. Bd2 {[%emt 0:00:00]} Ba2 {[%emt 0:01:08]} 43. Kd4 {[%emt 0:00:00]} h5 {[%emt 0:01:12]} 44. Bb4 {[%emt 0:00:00]} g6 {[%emt 0:00:20]} 45. Bc5 {[%emt 0:00:00]} Bb3 {[%emt 0:00:23]} 46. h3 {[%emt 0:00:00]} Bd5 {[%emt 0:00:21]} 47. g3 {[%emt 0:00:00]} Ba8 {[%emt 0:00:33]} 48. Kc4 {[%emt 0:00:00]} Bd5+ {[%emt 0:00:23]} 49. Kb4 {[%emt 0:00:00]} Ba8 {[%emt 0:00:48]} 50. Be3 {[%emt 0:00:00]} Bd5 {[%emt 0:00:43]} 51. Kc5 {[%emt 0:00:00]} Ba8 {[%emt 0:00:22]} 52. Kb6 {[%emt 0:00:00]} Kc8 {[%emt 0:00:09]} 53. Ka7 {[%emt 0:00:00]} Bd5 {[%emt 0:00:16]} 54. Bc5 {[%emt 0:00:00]} Bb7 {[%emt 0:00:15]} 55. Be3 1/2-1/2

[Event "48th Rilton Cup 2018"]
[Site "Stockholm"]
[Date "2018.12.29"]
[Round "3"]
[White "Kulaots, Kaido"]
[Black "Gholami, Aryan"]
[Result "0-1"]
[ECO "B12"]
[WhiteElo "2555"]
[BlackElo "2488"]
[Annotator "ChessBase"]
[PlyCount "56"]
[EventDate "2018.12.27"]
[EventType "swiss"]
[EventCountry "SWE"]
[SourceTitle "playchess.com"]
[Source "ChessBase"]
[SourceQuality "1"]
[TimeControl "40/5400+30:1800+30"]

1. e4 {[%emt 0:00:00]} c6 {[%emt 0:00:00]} 2. d4 {[%emt 0:00:58]} d5 {[%emt 0:00:00]} 3. e5 {[%emt 0:00:06]} Bf5 {[%emt 0:00:00]} 4. Nf3 {[%emt 0:00:20]} e6 {[%emt 0:00:39]} 5. Be2 {[%emt 0:00:12]} Ne7 {[%emt 0:01:28]} 6. c3 {[%emt 0:04:15]} Nd7 {[%emt 0:06:44]} 7. O-O {[%emt 0:01:52]} h6 {[%emt 0:00:19]} 8. Na3 {[%emt 0:04:30]} a6 {[%emt 0:10:11]} 9. Nc2 {[%emt 0:03:16]} c5 {[%emt 0:02:44]} 10. dxc5 {[%emt 0:00:49]} Nxc5 {[%emt 0:01:26]} 11. Ncd4 {[%emt 0:01:34]} Be4 {[%emt 0:04:07]} 12. Be3 {[%emt 0:09:08]} Ng6 {[%emt 0:02:20]} 13. b4 {[%emt 0:04:58]} Nd7 {[%emt 0:03:48]} 14. Nd2 {[%emt 0:01:17]} Ngxe5 {[%emt 0:23:54]} 15. f4 {[%emt 0:02:44]} Nc6 {[%emt 0:00:06]} 16. Nxe4 {[%emt 0:06:22]} dxe4 {[%emt 0:00:41]} 17. Nxe6 {[%emt 0:11:33]} fxe6 {[%emt 0:00:08]} 18. Bh5+ {[%emt 0:00:11]} Ke7 {[%emt 0:00:25]} 19. f5 {[%emt 0:00:18]} Nce5 {[%emt 0:17:34]} 20. Qb3 {[%emt 0:11:27]} exf5 {[%emt 0:00:07]} 21. Rxf5 {[%emt 0:01:11]} Qc7 {[%emt 0:00:06]} 22. Bf7 {[%emt 0:18:57]} Qc6 {[%emt 0:03:52]} 23. Rd1 {[%emt 0:06:47]} g6 {[%emt 0:01:39]} 24. Rf4 {[%emt 0:01:41]} Rc8 {[%emt 0:03:56]} 25. Rxe4 {[%emt 0:00:44]} Bg7 {[%emt 0:02:36]} 26. Rd5 {[%emt 0:05:44]} Rhf8 {[%emt 0:03:28]} 27. Bc5+ {[%emt 0:01:54]} Nxc5 {[%emt 0:00:33]} 28. Rxc5 {[%emt 0:00:06]} Qb6 {[%emt 0:00:42]} 0-1

[Event "48th Rilton Cup 2018"]
[Site "Stockholm"]
[Date "2018.12.29"]
[Round "3"]
[White "Hillarp Persson, Tiger"]
[Black "Nabaty, Tamir"]
[Result "0-1"]
[ECO "A06"]
[WhiteElo "2546"]
[BlackElo "2670"]
[Annotator "ChessBase"]
[PlyCount "66"]
[EventDate "2018.12.27"]
[EventType "swiss"]
[EventCountry "SWE"]
[SourceTitle "playchess.com"]
[Source "ChessBase"]
[SourceQuality "1"]
[TimeControl "40/5400+30:1800+30"]

1. Nf3 {[%emt 0:00:00]} d5 {[%emt 0:00:27]} 2. g3 {[%emt 0:00:32]} g6 {[%emt 0:00:17]} 3. Bg2 {[%emt 0:00:14]} Bg7 {[%emt 0:00:10]} 4. c4 {[%emt 0:01:52]} dxc4 {[%emt 0:00:13]} 5. Na3 {[%emt 0:00:39]} e5 {[%emt 0:00:44]} 6. O-O {[%emt 0:00:29]} Nc6 {[%emt 0:02:44]} 7. Nxc4 {[%emt 0:00:44]} Nge7 {[%emt 0:01:02]} 8. d3 {[%emt 0:00:19]} O-O {[%emt 0:00:33]} 9. Rb1 {[%emt 0:01:04]} a5 {[%emt 0:00:53]} 10. b3 {[%emt 0:00:07]} Be6 {[%emt 0:02:05]} 11. Bb2 {[%emt 0:05:47]} f6 {[%emt 0:00:15]} 12. a3 {[%emt 0:02:55]} Qd7 {[%emt 0:03:40]} 13. Re1 {[%emt 0:05:54]} Rad8 {[%emt 0:04:05]} 14. Rc1 {[%emt 0:07:32]} Bh6 {[%emt 0:10:52]} 15. Ncd2 {[%emt 0:04:08]} Nf5 {[%emt 0:03:41]} 16. Rc2 {[%emt 0:29:55]} Qf7 {[%emt 0:11:59]} 17. Qb1 {[%emt 0:05:43]} Rfe8 {[%emt 0:00:57]} 18. e3 {[%emt 0:09:37]} Rd7 {[%emt 0:21:41]} 19. Ba1 {[%emt 0:09:23]} Bf8 {[%emt 0:01:20]} 20. g4 {[%emt 0:00:19]} Nd6 {[%emt 0:01:10]} 21. g5 {[%emt 0:00:37]} Bf5 {[%emt 0:02:47]} 22. Rxc6 {[%emt 0:05:41]} bxc6 {[%emt 0:00:08]} 23. gxf6 {[%emt 0:00:07]} Qxf6 {[%emt 0:01:01]} 24. e4 {[%emt 0:01:49]} Bg4 {[%emt 0:01:04]} 25. d4 {[%emt 0:00:25]} Nf7 {[%emt 0:02:32]} 26. dxe5 {[%emt 0:02:27]} Qf4 {[%emt 0:00:52]} 27. Qb2 {[%emt 0:02:06]} Bg7 {[%emt 0:03:03]} 28. e6 {[%emt 0:01:01]} Bxb2 {[%emt 0:00:45]} 29. exd7 {[%emt 0:00:07]} Rd8 {[%emt 0:02:49]} 30. Bxb2 {[%emt 0:00:45]} Rxd7 {[%emt 0:00:41]} 31. Bc1 {[%emt 0:00:47]} Ne5 {[%emt 0:00:44]} 32. Nxe5 {[%emt 0:00:35]} Qxe5 {[%emt 0:00:06]} 33. h3 {[%emt 0:00:39]} Bh5 {[%emt 0:03:05]} 0-1

[Event "48th Rilton Cup 2018"]
[Site "Stockholm"]
[Date "2018.12.29"]
[Round "3"]
[White "Urkedal, Frode Olav Olsen"]
[Black "Dahl, Trygve"]
[Result "1-0"]
[ECO "E11"]
[WhiteElo "2537"]
[BlackElo "2342"]
[Annotator "ChessBase"]
[PlyCount "53"]
[EventDate "2018.12.27"]
[EventType "swiss"]
[EventCountry "SWE"]
[SourceTitle "playchess.com"]
[Source "ChessBase"]
[SourceQuality "1"]
[TimeControl "40/5400+30:1800+30"]

1. d4 {[%emt 0:00:00]} Nf6 {[%emt 0:00:42]} 2. Nf3 {[%emt 0:00:00]} e6 {[%emt 0:00:30]} 3. c4 {[%emt 0:00:00]} Bb4+ {[%emt 0:00:04]} 4. Nbd2 {[%emt 0:00:22]} b6 {[%emt 0:08:37]} 5. a3 {[%emt 0:01:42]} Bxd2+ {[%emt 0:00:27]} 6. Qxd2 {[%emt 0:00:04]} Bb7 {[%emt 0:00:17]} 7. e3 {[%emt 0:00:06]} O-O {[%emt 0:03:47]} 8. b4 {[%emt 0:01:48]} d6 {[%emt 0:01:43]} 9. Bb2 {[%emt 0:02:09]} Nbd7 {[%emt 0:04:01]} 10. Be2 {[%emt 0:01:17]} Qe7 {[%emt 0:01:11]} 11. O-O {[%emt 0:00:29]} Ne4 {[%emt 0:00:32]} 12. Qc2 {[%emt 0:00:11]} f5 {[%emt 0:01:33]} 13. Rad1 {[%emt 0:10:51]} Rae8 {[%emt 0:24:05]} 14. d5 {[%emt 0:03:35]} e5 {[%emt 0:03:01]} 15. Ne1 {[%emt 0:02:00]} Rf6 {[%emt 0:05:00]} 16. f3 {[%emt 0:02:49]} Ng5 {[%emt 0:01:15]} 17. Kh1 {[%emt 0:13:50]} Qf7 {[%emt 0:08:26]} 18. f4 {[%emt 0:12:24]} Ne4 {[%emt 0:03:24]} 19. Bf3 {[%emt 0:08:28]} Rh6 {[%emt 0:05:22]} 20. fxe5 {[%emt 0:12:07]} Nxe5 {[%emt 0:14:14]} 21. Bxe4 {[%emt 0:01:48]} Ng4 {[%emt 0:01:51]} 22. Rxf5 {[%emt 0:00:53]} Qe7 {[%emt 0:02:25]} 23. Qc3 {[%emt 0:09:45]} Bc8 {[%emt 0:05:25]} 24. Rf4 {[%emt 0:02:20]} Rf8 {[%emt 0:02:32]} 25. Kg1 {[%emt 0:01:21]} Rxf4 {[%emt 0:01:25]} 26. exf4 {[%emt 0:00:07]} Rxh2 {[%emt 0:00:20]} 27. Nf3 {[%emt 0:00:31]} 1-0

[Event "48th Rilton Cup 2018"]
[Site "Stockholm"]
[Date "2018.12.29"]
[Round "3"]
[White "Yeoh, Li Tian"]
[Black "Lagarde, Maxime"]
[Result "1/2-1/2"]
[ECO "B22"]
[WhiteElo "2508"]
[BlackElo "2616"]
[Annotator "ChessBase"]
[PlyCount "82"]
[EventDate "2018.12.27"]
[EventType "swiss"]
[EventCountry "SWE"]
[SourceTitle "playchess.com"]
[Source "ChessBase"]
[SourceQuality "1"]
[TimeControl "40/5400+30:1800+30"]

1. e4 {[%emt 0:00:00]} c5 {[%emt 0:03:30]} 2. c3 {[%emt 0:00:00]} d5 {[%emt 0:00:05]} 3. exd5 {[%emt 0:00:00]} Qxd5 {[%emt 0:00:05]} 4. d4 {[%emt 0:00:09]} Nc6 {[%emt 0:00:07]} 5. Nf3 {[%emt 0:00:11]} Bf5 {[%emt 0:00:06]} 6. Be3 {[%emt 0:02:02]} cxd4 {[%emt 0:01:42]} 7. Nxd4 {[%emt 0:02:26]} Nf6 {[%emt 0:00:26]} 8. Nxf5 {[%emt 0:06:59]} Qxf5 {[%emt 0:00:07]} 9. Bd3 {[%emt 0:00:04]} Qd5 {[%emt 0:00:08]} 10. O-O {[%emt 0:02:08]} O-O-O {[%emt 0:00:52]} 11. Be2 {[%emt 0:06:44]} Qxd1 {[%emt 0:00:53]} 12. Rxd1 {[%emt 0:00:10]} Rxd1+ {[%emt 0:00:04]} 13. Bxd1 {[%emt 0:00:06]} Nd5 {[%emt 0:00:02]} 14. Bc1 {[%emt 0:07:09]} e6 {[%emt 0:01:32]} 15. Nd2 {[%emt 0:00:21]} Be7 {[%emt 0:05:14]} 16. Nb3 {[%emt 0:08:29]} Rd8 {[%emt 0:07:55]} 17. Be2 {[%emt 0:01:25]} e5 {[%emt 0:05:30]} 18. Bd2 {[%emt 0:04:47]} f5 {[%emt 0:23:05]} 19. f3 {[%emt 0:07:50]} Nb6 {[%emt 0:12:44]} 20. Rd1 {[%emt 0:05:28]} a5 {[%emt 0:01:53]} 21. Kf1 {[%emt 0:08:07]} a4 {[%emt 0:08:12]} 22. Na1 {[%emt 0:00:15]} Kc7 {[%emt 0:05:46]} 23. Nc2 {[%emt 0:03:49]} g6 {[%emt 0:03:09]} 24. Ke1 {[%emt 0:01:35]} Bc5 {[%emt 0:05:07]} 25. Be3 {[%emt 0:03:05]} Rxd1+ {[%emt 0:00:44]} 26. Kxd1 {[%emt 0:00:38]} Kd6 {[%emt 0:06:32]} 27. b4 {[%emt 0:03:53]} axb3 {[%emt 0:00:57]} 28. axb3 {[%emt 0:00:07]} Nd5 {[%emt 0:04:07]} 29. Bxc5+ {[%emt 0:00:59]} Kxc5 {[%emt 0:00:03]} 30. Kd2 {[%emt 0:00:08]} Kd6 {[%emt 0:00:42]} 31. Ne3 {[%emt 0:02:03]} Na5 {[%emt 0:02:16]} 32. Nc4+ {[%emt 0:02:55]} Nxc4+ {[%emt 0:00:05]} 33. Bxc4 {[%emt 0:00:06]} Nf6 {[%emt 0:00:36]} 34. Kd3 {[%emt 0:01:16]} g5 {[%emt 0:00:39]} 35. b4 {[%emt 0:02:23]} h5 {[%emt 0:00:31]} 36. Bf7 {[%emt 0:00:45]} h4 {[%emt 0:00:57]} 37. h3 {[%emt 0:08:40]} Nd5 {[%emt 0:01:24]} 38. Bxd5 {[%emt 0:00:33]} Kxd5 {[%emt 0:00:01]} 39. c4+ {[%emt 0:00:08]} Kd6 {[%emt 0:00:19]} 40. Ke3 {[%emt 0:00:06]} Kc6 {[%emt 0:00:11]} 41. Kd3 {[%emt 0:30:05]} Kd6 {[%emt 0:30:36] Kd4 Ke7+ Kd3} 1/2-1/2

[Event "48th Rilton Cup 2018"]
[Site "Stockholm"]
[Date "2018.12.29"]
[Round "3"]
[White "Valsecchi, Alessio"]
[Black "Gajewski, Grzegorz"]
[Result "1/2-1/2"]
[ECO "D37"]
[WhiteElo "2497"]
[BlackElo "2598"]
[Annotator "ChessBase"]
[PlyCount "61"]
[EventDate "2018.12.27"]
[EventType "swiss"]
[EventCountry "SWE"]
[SourceTitle "playchess.com"]
[Source "ChessBase"]
[SourceQuality "1"]
[TimeControl "40/5400+30:1800+30"]

1. d4 {[%emt 0:00:00]} Nf6 {[%emt 0:00:00]} 2. c4 {[%emt 0:00:00]} e6 {[%emt 0:00:00]} 3. Nf3 {[%emt 0:00:04]} d5 {[%emt 0:00:28]} 4. Nc3 {[%emt 0:00:19]} Nbd7 {[%emt 0:02:14]} 5. e3 {[%emt 0:05:00]} b6 {[%emt 0:02:37]} 6. cxd5 {[%emt 0:02:11]} exd5 {[%emt 0:04:41]} 7. Bd3 {[%emt 0:00:09]} Bb7 {[%emt 0:00:06]} 8. O-O {[%emt 0:00:34]} Bd6 {[%emt 0:08:01]} 9. Qc2 {[%emt 0:10:04]} c5 {[%emt 0:04:30]} 10. e4 {[%emt 0:02:35]} c4 {[%emt 0:06:39]} 11. e5 {[%emt 0:04:13]} cxd3 {[%emt 0:00:06]} 12. Qxd3 {[%emt 0:00:06]} Be7 {[%emt 0:00:05]} 13. exf6 {[%emt 0:00:08]} Nxf6 {[%emt 0:00:05]} 14. Qb5+ {[%emt 0:03:02]} Kf8 {[%emt 0:06:34]} 15. Ne5 {[%emt 0:06:40]} Ne4 {[%emt 0:13:32]} 16. a4 {[%emt 0:08:51]} Nxc3 {[%emt 0:11:13]} 17. bxc3 {[%emt 0:00:07]} f6 {[%emt 0:04:59]} 18. Nd3 {[%emt 0:05:56]} Kf7 {[%emt 0:02:46]} 19. Nf4 {[%emt 0:08:29]} Bd6 {[%emt 0:05:49]} 20. a5 {[%emt 0:03:11]} Qe8 {[%emt 0:09:45]} 21. Qb3 {[%emt 0:04:55]} Bxf4 {[%emt 0:01:04]} 22. Bxf4 {[%emt 0:00:07]} Qc6 {[%emt 0:02:48]} 23. Rfb1 {[%emt 0:03:57]} Rhe8 {[%emt 0:02:31]} 24. axb6 {[%emt 0:02:39]} axb6 {[%emt 0:00:05]} 25. Rxa8 {[%emt 0:00:05]} Rxa8 {[%emt 0:02:11]} 26. h3 {[%emt 0:00:42]} Ba6 {[%emt 0:02:11]} 27. Qxb6 {[%emt 0:01:16]} Qxb6 {[%emt 0:00:06]} 28. Rxb6 {[%emt 0:00:06]} Bd3 {[%emt 0:00:42]} 29. Rb7+ {[%emt 0:01:41]} Kg8 {[%emt 0:00:48]} 30. Rb8+ {[%emt 0:05:49]} Rxb8 {[%emt 0:00:06]} 31. Bxb8 {[%emt 0:00:04]} 1/2-1/2

[Event "48th Rilton Cup 2018"]
[Site "Stockholm"]
[Date "2018.12.29"]
[Round "3"]
[White "Zumsande, Martin"]
[Black "Furhoff, Johan"]
[Result "1-0"]
[ECO "C50"]
[WhiteElo "2490"]
[BlackElo "2332"]
[Annotator "ChessBase"]
[PlyCount "103"]
[EventDate "2018.12.27"]
[EventType "swiss"]
[EventCountry "SWE"]
[SourceTitle "playchess.com"]
[Source "ChessBase"]
[SourceQuality "1"]
[TimeControl "40/5400+30:1800+30"]

1. e4 {[%emt 0:00:00]} e5 {[%emt 0:00:00]} 2. Nf3 {[%emt 0:00:00]} Nc6 {[%emt 0:00:00]} 3. Bc4 {[%emt 0:00:00]} Bc5 {[%emt 0:00:00]} 4. d3 {[%emt 0:00:13]} Nf6 {[%emt 0:00:12]} 5. O-O {[%emt 0:00:08]} O-O {[%emt 0:00:11]} 6. a4 {[%emt 0:00:26]} a6 {[%emt 0:04:56]} 7. c3 {[%emt 0:00:47]} d6 {[%emt 0:07:13]} 8. Bg5 {[%emt 0:02:50]} h6 {[%emt 0:06:21]} 9. Bh4 {[%emt 0:00:07]} g5 {[%emt 0:01:42]} 10. Bg3 {[%emt 0:00:30]} Bg4 {[%emt 0:01:03]} 11. Nbd2 {[%emt 0:13:25]} Nh5 {[%emt 0:08:18]} 12. Kh1 {[%emt 0:03:25]} Nf4 {[%emt 0:08:11]} 13. h3 {[%emt 0:09:46]} Bh5 {[%emt 0:01:45]} 14. Bxf4 {[%emt 0:01:39]} gxf4 {[%emt 0:04:06]} 15. g4 {[%emt 0:01:30]} fxg3 {[%emt 0:04:10]} 16. fxg3 {[%emt 0:00:25]} Kg7 {[%emt 0:01:13]} 17. Qe1 {[%emt 0:09:42]} Bg6 {[%emt 0:11:43]} 18. Nh4 {[%emt 0:05:50]} Ne7 {[%emt 0:03:32]} 19. g4 {[%emt 0:04:51]} c6 {[%emt 0:02:10]} 20. Qg3 {[%emt 0:02:18]} d5 {[%emt 0:06:05]} 21. Ba2 {[%emt 0:15:17]} f6 {[%emt 0:00:49]} 22. Rf3 {[%emt 0:03:23]} Qd6 {[%emt 0:01:20]} 23. Raf1 {[%emt 0:01:08]} Rad8 {[%emt 0:00:36]} 24. Re1 {[%emt 0:07:42]} Bh7 {[%emt 0:01:09]} 25. Nf1 {[%emt 0:01:12]} b5 {[%emt 0:02:36]} 26. Qg2 {[%emt 0:00:56]} dxe4 {[%emt 0:03:33]} 27. dxe4 {[%emt 0:00:16]} bxa4 {[%emt 0:03:57]} 28. Bc4 {[%emt 0:01:41]} Bg8 {[%emt 0:01:32]} 29. Nf5+ {[%emt 0:04:23]} Nxf5 {[%emt 0:00:06]} 30. gxf5+ {[%emt 0:00:02]} Kh8 {[%emt 0:00:09]} 31. Qg6 {[%emt 0:00:06]} Rd7 {[%emt 0:01:02]} 32. Rd3 {[%emt 0:02:10]} Bxc4 {[%emt 0:00:43]} 33. Rxd6 {[%emt 0:00:33]} Bxd6 {[%emt 0:00:59]} 34. Ne3 {[%emt 0:02:52]} Rg7 {[%emt 0:05:22]} 35. Qh5 {[%emt 0:00:52]} Bb3 {[%emt 0:04:40]} 36. Ng4 {[%emt 0:01:05]} Rh7 {[%emt 0:00:45]} 37. Rg1 {[%emt 0:02:16]} Bc2 {[%emt 0:01:30]} 38. Nf2 {[%emt 0:03:47]} Bc5 {[%emt 0:01:01]} 39. Rc1 {[%emt 0:00:01]} Bb3 {[%emt 0:00:55]} 40. Ng4 {[%emt 0:00:59]} Be7 {[%emt 0:02:00]} 41. Ne3 {[%emt 0:08:44]} Bf7 {[%emt 0:07:19]} 42. Qe2 {[%emt 0:00:57]} Rg8 {[%emt 0:02:03]} 43. Rg1 {[%emt 0:00:43]} Rhg7 {[%emt 0:00:13]} 44. Rxg7 {[%emt 0:01:37]} Rxg7 {[%emt 0:00:50]} 45. Kh2 {[%emt 0:03:02]} h5 {[%emt 0:07:25]} 46. Ng2 {[%emt 0:04:14]} Bc5 {[%emt 0:07:43]} 47. Qxa6 {[%emt 0:03:21]} Bf2 {[%emt 0:00:17]} 48. Qxc6 {[%emt 0:00:31]} Bb3 {[%emt 0:00:55]} 49. Qxf6 {[%emt 0:02:37]} Bg3+ {[%emt 0:00:08]} 50. Kh1 {[%emt 0:01:05]} Bc2 {[%emt 0:02:34]} 51. Qh6+ {[%emt 0:01:00]} Kg8 {[%emt 0:00:13]} 52. f6 {[%emt 0:00:03]} 1-0

[Event "48th Rilton Cup 2018"]
[Site "Stockholm"]
[Date "2018.12.29"]
[Round "3"]
[White "Libiszewski, Fabien"]
[Black "Murzin, Volodar"]
[Result "1-0"]
[ECO "B23"]
[WhiteElo "2481"]
[BlackElo "2336"]
[Annotator "ChessBase"]
[PlyCount "91"]
[EventDate "2018.12.27"]
[EventType "swiss"]
[EventCountry "SWE"]
[SourceTitle "playchess.com"]
[Source "ChessBase"]
[SourceQuality "1"]
[TimeControl "40/5400+30:1800+30"]

1. e4 {[%emt 0:02:40]} c5 {[%emt 0:00:00]} 2. Nc3 {[%emt 0:00:17]} d6 {[%emt 0:00:00]} 3. d4 {[%emt 0:00:21]} cxd4 {[%emt 0:00:47]} 4. Qxd4 {[%emt 0:00:05]} Nc6 {[%emt 0:03:18]} 5. Qd2 {[%emt 0:00:53]} Nf6 {[%emt 0:03:01]} 6. b3 {[%emt 0:00:24]} e5 {[%emt 0:03:08]} 7. Bb2 {[%emt 0:03:46]} Be7 {[%emt 0:00:21]} 8. O-O-O {[%emt 0:01:33]} O-O {[%emt 0:01:20]} 9. Kb1 {[%emt 0:03:54]} Be6 {[%emt 0:06:51]} 10. f3 {[%emt 0:05:14]} Rc8 {[%emt 0:04:32]} 11. Nge2 {[%emt 0:10:08]} a6 {[%emt 0:06:47]} 12. g4 {[%emt 0:05:03]} b5 {[%emt 0:06:21]} 13. Nd5 {[%emt 0:02:37]} Bxd5 {[%emt 0:01:48]} 14. exd5 {[%emt 0:05:16]} Nb8 {[%emt 0:00:03]} 15. g5 {[%emt 0:08:52]} Nfd7 {[%emt 0:04:32]} 16. h4 {[%emt 0:00:53]} Nb6 {[%emt 0:06:39]} 17. f4 {[%emt 0:03:42]} f6 {[%emt 0:11:05]} 18. Bh3 {[%emt 0:08:31]} N8d7 {[%emt 0:02:23]} 19. fxe5 {[%emt 0:06:58]} fxe5 {[%emt 0:00:41]} 20. Ng3 {[%emt 0:01:34]} Nc5 {[%emt 0:08:26]} 21. Bxc8 {[%emt 0:06:02]} Qxc8 {[%emt 0:00:16]} 22. Qe2 {[%emt 0:05:11]} Qb7 {[%emt 0:03:26]} 23. Ne4 {[%emt 0:01:41]} Nxe4 {[%emt 0:00:20]} 24. Qxe4 {[%emt 0:00:02]} Rf4 {[%emt 0:00:30]} 25. Qg2 {[%emt 0:00:40]} Qc8 {[%emt 0:00:35]} 26. Bc1 {[%emt 0:05:24]} Qg4 {[%emt 0:01:37]} 27. Qxg4 {[%emt 0:02:18]} Rxg4 {[%emt 0:00:19]} 28. Be3 {[%emt 0:00:18]} Nc8 {[%emt 0:00:49]} 29. Kc1 {[%emt 0:03:23]} Bd8 {[%emt 0:01:13]} 30. Rdg1 {[%emt 0:02:27]} Re4 {[%emt 0:00:03]} 31. Kd2 {[%emt 0:00:16]} Bb6 {[%emt 0:00:06]} 32. Rg3 {[%emt 0:00:14]} Bxe3+ {[%emt 0:00:34]} 33. Rxe3 {[%emt 0:00:01]} Rf4 {[%emt 0:00:02]} 34. Rc3 {[%emt 0:03:24]} Ne7 {[%emt 0:00:40]} 35. Kc1 {[%emt 0:00:35]} Kf8 {[%emt 0:01:29]} 36. Rc7 {[%emt 0:01:29]} Nxd5 {[%emt 0:00:27]} 37. Rd7 {[%emt 0:00:23]} Nb4 {[%emt 0:00:57]} 38. a3 {[%emt 0:01:11]} Nc6 {[%emt 0:00:01]} 39. Rxd6 {[%emt 0:00:09]} Nd4 {[%emt 0:00:02]} 40. Re1 {[%emt 0:01:20]} Nf3 {[%emt 0:02:17]} 41. Re3 {[%emt 0:04:05]} e4 {[%emt 0:00:16]} 42. Rxa6 {[%emt 0:01:37]} Rxh4 {[%emt 0:00:32]} 43. Rb6 {[%emt 0:05:20]} Nd4 {[%emt 0:00:30]} 44. Rb7 {[%emt 0:02:44]} Rg4 {[%emt 0:01:13]} 45. Kb2 {[%emt 0:01:04]} Rg2 {[%emt 0:02:09]} 46. Rc3 {[%emt 0:00:40]} 1-0